lending/lending_fUSD_20250621
["ID","MTS","AMOUNT","RATE_DAILY","PERIOD"]
[366818314,1750474232499,-207.0,0.00024723,7]
[366818315,1750474232509,-500.0,0.0002475,2]
[366818316,1750474232518,-501.35718042,0.0002475,2]
[366818317,1750474232528,-500.0,0.00024767,2]
[366818318,1750474232537,-500.0,0.00024767,2]
[366818319,1750474232548,-500.0,0.00024767,2]
[366818320,1750474232558,-1664.18944008,0.00024768,2]
[366818322,1750474232570,-13929.00055992,0.00024768,2]
[366818324,1750474232580,-1000.0,0.00024773,2]
[366818326,1750474232590,-197.76,0.00024814,2]
[366818327,1750474232599,-200.4,0.00024856,120]
[366818328,1750474232609,-800.16756636,0.000249,12]
[366818329,1750474232619,-250.0,0.00024984,2]
[366818330,1750474232628,-160.17033323,0.0002502,2]
[366818331,1750474232638,-500.0,0.0002502,2]
[366818332,1750474232648,-160.16420562,0.0002502,2]
[366818333,1750474232658,-413.49,0.00025034,2]
[366818334,1750474232668,-229.95,0.00025051,2]
[366818335,1750474232678,-502.45532251,0.00025181,2]
[366818336,1750474232688,-151.27778144,0.00025298,2]
[366818337,1750474232698,-501.55447768,0.00025315,2]
[366818338,1750474232707,-1000.0,0.00025315,2]
[366818339,1750474232717,-1011.98715924,0.00025315,2]
[366818340,1750474232727,-1600.0,0.00025349,2]
[366818341,1750474232736,-2642.04845017,0.0002535,2]
[366818342,1750474232748,-529.2516072,0.0002535,2]
[366818343,1750474232758,-670.7483928,0.0002536,2]
[366818344,1750474232771,-931.80899148,0.0002536,2]
[366818345,1750474232782,-334.50747262,0.0002536,2]
[366818346,1750474232794,-717.54,0.0002536,2]
[366818348,1750474232805,-21245.3951431,0.0002536,2]
[366818350,1750474232815,-800.16756629,0.00025383,13]
[366818352,1750474232825,-300.0,0.00025385,2]
[366818354,1750474232834,-207.4,0.00025541,2]
[366818356,1750474232844,-1957.856,0.00025541,2]
[366818358,1750474232854,-151.0,0.00025541,2]
[366818360,1750474232864,-1000.0,0.00025568,2]
[366818362,1750474232873,-321.0,0.0002558,2]
[366818364,1750474232883,-2030.296672,0.00025596,2]
[366818366,1750474232893,-2105.41764886,0.00025651,2]
[366818368,1750474232903,-666.0,0.00025705,2]
[366818369,1750474232912,-2183.31810187,0.00025706,2]
[366818371,1750474232922,-2264.10087164,0.00025761,2]
[366818373,1750474232931,-500.0,0.00025781,2]
[366818375,1750474232941,-2347.87260389,0.00025816,2]
[366818377,1750474232950,-600.0,0.00025844,4]
[366818379,1750474232960,-1303.89990467,0.00025863,2]
[366818403,1750474233190,-800.16756629,0.00025866,14]
[366818405,1750474233202,-1974.36444461,0.00025871,2]
[366818407,1750474233211,-277.0,0.00025932,2]
[366818409,1750474233221,-191.0,0.0002596,2]
[366818411,1750474233231,-3335.0,0.00025964,2]
[366818413,1750474233241,-946.0,0.00025964,2]
[366818415,1750474233250,-638.0,0.00025964,2]
[366818417,1750474233260,-803.0,0.00025964,2]
[366818419,1750474233269,-1161.0,0.00025964,2]
[366818421,1750474233279,-1278.0,0.00025964,2]
[366818423,1750474233288,-559.0,0.00025964,2]
[366818425,1750474233298,-591.0,0.00025964,2]
[366818427,1750474233307,-928.0,0.00025964,2]
[366818429,1750474233317,-2005.0,0.00025964,2]
[366818431,1750474233327,-1676.0,0.00025964,2]
[366818433,1750474233337,-4095.0,0.00025964,2]
[366818435,1750474233346,-245.0,0.00025964,2]
[366818437,1750474233355,-151.0,0.00025964,2]
[366818439,1750474233365,-150.312,0.00025964,2]
[366818441,1750474233374,-191.824,0.00025964,2]
[366818443,1750474233384,-156.0,0.00025964,2]
[366818445,1750474233393,-7135.0,0.00025964,2]
[366818447,1750474233402,-2000.0,0.00026,2]
[366818449,1750474233412,-1500.0,0.00026116,2]
[366818451,1750474233422,-217.0,0.00026116,2]
[366818453,1750474233432,-300.0,0.00026181,2]
[366818455,1750474233442,-150.0,0.00026181,2]
[366818457,1750474233452,-150.0,0.00026181,2]
[366818459,1750474233462,-300.0,0.00026181,2]
[366818461,1750474233472,-150.0,0.00026308,2]
[366818463,1750474233481,-179.18303486,0.00026341,2]
[366818466,1750474233491,-254.0,0.00026343,2]
[366818469,1750474233502,-191.0,0.00026345,2]
[366818471,1750474233512,-800.16756629,0.00026348,14]
[366818472,1750474233521,-150.0,0.00026387,2]
[366818474,1750474233531,-157.86261522,0.00026397,2]
[366818476,1750474233541,-3937.6464504,0.00026397,2]
[366818479,1750474233555,-358.69271,0.00026397,2]
[366818481,1750474233565,-564.3629,0.00026398,2]
[366818483,1750474233575,-1144.0,0.000264,2]
[366818485,1750474233585,-114.92048459,0.000264,2]
[366818487,1750474233598,-1047.85311258,0.000264,2]
[366818489,1750474233610,-400.28254252,0.000264,2]
[366818491,1750474233621,-297.31,0.000264,2]
[366818494,1750474233634,-320.29041264,0.000264,2]
[366818496,1750474233646,-1334.31344767,0.000264,2]
[366818498,1750474233656,-1194.64175782,0.000264,2]
[366818636,1750474238524,-834.26476573,0.00025918,2]
[366818637,1750474238535,-885.0,0.00025964,2]
[366818638,1750474238544,-4512.74824218,0.000264,2]
[366818639,1750474238554,-157.86261516,0.00026411,2]
[366818640,1750474238565,-157.86261516,0.00026426,2]
[366818641,1750474238574,-3682.14532,0.0002643,2]
[366818642,1750474238585,-160.50009943,0.00026435,2]
[366818643,1750474238594,-157.86261516,0.0002644,2]
[366818644,1750474238604,-157.86261516,0.00026455,2]
[366818645,1750474238614,-420.0,0.00026464,2]
[366818646,1750474238624,-157.86261516,0.00026469,2]
[366818647,1750474238633,-499.60011461,0.00026473,2]
[366818648,1750474238643,-500.88915149,0.00026473,2]
[366818649,1750474238653,-536.16278134,0.00026473,2]
[366818650,1750474238663,-500.0,0.00026473,2]
[366818651,1750474238672,-500.0,0.00026473,2]
[366818652,1750474238682,-500.0,0.00026473,2]
[366818653,1750474238692,-500.0,0.00026473,2]
[366818654,1750474238701,-500.0,0.00026473,2]
[366818655,1750474238711,-3682.14532,0.0002648,2]
[366818656,1750474238721,-2828.527,0.00026481,13]
[366818657,1750474238731,-179.826,0.00026481,13]
[366818658,1750474238740,-157.86261516,0.00026483,2]
[366818659,1750474238749,-207.0,0.00026486,9]
[366818660,1750474238759,-270.4,0.00026488,2]
[366818661,1750474238768,-490.0,0.00026497,4]
[366818662,1750474238778,-494.06970851,0.00026497,4]
[366818663,1750474238787,-490.0,0.00026497,4]
[366818664,1750474238796,-499.15410306,0.00026497,4]
[366818665,1750474238806,-250.0,0.00026497,4]
[366818666,1750474238816,-490.0,0.00026497,4]
[366818667,1750474238826,-490.0,0.00026497,4]
[366818668,1750474238835,-490.0,0.00026497,4]
[366818670,1750474238845,-490.0,0.00026497,4]
[366818672,1750474238855,-490.0,0.00026497,4]
[366818674,1750474238864,-490.0,0.00026497,4]
[366818676,1750474238874,-490.0,0.00026497,4]
[366818678,1750474238884,-490.0,0.00026497,4]
[366818680,1750474238894,-490.0,0.00026497,4]
[366818682,1750474238903,-1100.35,0.00026497,4]
[366818684,1750474238913,-490.0,0.00026497,4]
[366818686,1750474238923,-490.0,0.00026497,4]
[366818688,1750474238932,-500.0,0.00026497,4]
[366818690,1750474238942,-490.0,0.00026497,4]
[366818692,1750474238952,-490.0,0.00026497,4]
[366818694,1750474238961,-490.0,0.00026497,4]
[366818696,1750474238972,-490.0,0.00026497,4]
[366818697,1750474238982,-953.12,0.00026497,4]
[366818698,1750474238992,-490.0,0.00026497,4]
[366818699,1750474239002,-490.0,0.00026497,4]
[366818700,1750474239012,-490.0,0.00026497,4]
[366818701,1750474239022,-3269.61,0.00026497,4]
[366818702,1750474239032,-552.55,0.00026497,4]
[366818703,1750474239044,-1038.32,0.00026497,4]
[366818704,1750474239054,-490.0,0.00026497,4]
[366818705,1750474239063,-490.0,0.00026497,4]
[366818706,1750474239073,-913.56,0.00026497,4]
[366818707,1750474239082,-490.0,0.00026497,4]
[366818708,1750474239093,-490.0,0.00026497,4]
[366818709,1750474239103,-490.0,0.00026497,4]
[366818710,1750474239112,-490.0,0.00026497,4]
[366818711,1750474239123,-490.0,0.00026497,4]
[366818712,1750474239134,-606.91847156,0.00026497,4]
[366818713,1750474239144,-529.66718854,0.00026497,4]
[366818714,1750474239154,-490.0,0.00026497,4]
[366818715,1750474239164,-490.0,0.00026497,4]
[366818716,1750474239175,-490.0,0.00026497,4]
[366818717,1750474239184,-519.43021393,0.00026497,4]
[366818718,1750474239195,-490.0,0.00026497,4]
[366818719,1750474239204,-490.0,0.00026497,4]
[366818720,1750474239214,-539.58215451,0.00026497,4]
[366818721,1750474239225,-490.0,0.00026497,4]
[366818722,1750474239234,-591.39,0.00026497,4]
[366818723,1750474239244,-490.0,0.00026497,4]
[366818724,1750474239254,-490.0,0.00026497,4]
[366818725,1750474239264,-590.41,0.00026497,4]
[366818726,1750474239275,-490.0,0.00026497,4]
[366818727,1750474239286,-490.0,0.00026497,4]
[366818728,1750474239296,-490.0,0.00026497,4]
[366818729,1750474239307,-490.0,0.00026497,4]
[366818730,1750474239317,-490.0,0.00026497,4]
[366818731,1750474239328,-490.0,0.00026497,4]
[366818732,1750474239338,-496.42275013,0.00026497,4]
[366818733,1750474239349,-490.0,0.00026497,4]
[366818734,1750474239360,-490.0,0.00026497,4]
[366818735,1750474239369,-490.0,0.00026497,4]
[366818736,1750474239379,-1449.52,0.00026497,4]
[366818737,1750474239388,-490.0,0.00026497,4]
[366818738,1750474239398,-490.0,0.00026497,4]
[366818739,1750474239407,-490.0,0.00026497,4]
[366818740,1750474239417,-490.0,0.00026497,4]
[366818741,1750474239427,-490.0,0.00026497,4]
[366818742,1750474239437,-490.0,0.00026497,4]
[366818743,1750474239449,-490.0,0.00026497,4]
[366818744,1750474239459,-490.0,0.00026497,4]
[366818745,1750474239469,-490.0,0.00026497,4]
[366818746,1750474239479,-521.47488016,0.00026497,4]
[366818747,1750474239489,-697.72,0.00026497,4]
[366818748,1750474239499,-490.0,0.00026497,4]
[366818749,1750474239509,-648.37,0.00026497,4]
[366818750,1750474239520,-590.66497097,0.00026497,4]
[366818751,1750474239531,-540.14697285,0.00026497,4]
[366818752,1750474239542,-490.0,0.00026497,4]
[366818753,1750474239552,-490.0,0.00026497,4]
[366818754,1750474239562,-490.0,0.00026497,4]
[366818755,1750474239572,-419.55087929,0.00026497,4]
[366818756,1750474239582,-490.0,0.00026497,4]
[366818757,1750474239592,-321.26952189,0.00026497,4]
[366818758,1750474239603,-490.0,0.00026497,4]
[366818759,1750474239613,-1005.71,0.00026497,4]
[366818760,1750474239624,-490.0,0.00026497,4]
[366818761,1750474239634,-684.99,0.00026497,2]
[366818762,1750474239644,-490.0,0.00026497,4]
[366818763,1750474239655,-490.0,0.00026497,4]
[366818764,1750474239665,-490.0,0.00026497,4]
[366818765,1750474239675,-490.0,0.00026497,4]
[366818766,1750474239685,-490.0,0.00026497,4]
[366818767,1750474239697,-526.12,0.00026497,4]
[366818768,1750474239712,-490.0,0.00026497,4]
[366818769,1750474239724,-522.32,0.00026497,4]
[366818770,1750474239738,-490.0,0.00026497,4]
[366818771,1750474239748,-474.6517015,0.00026497,4]
[366818772,1750474239758,-490.0,0.00026497,4]
[366818773,1750474239768,-4046.66,0.00026497,4]
[366818774,1750474239778,-490.0,0.00026497,4]
[366818775,1750474239788,-490.0,0.00026497,4]
[366818776,1750474239797,-490.0,0.00026497,4]
[366818777,1750474239807,-602.57,0.00026497,4]
[366818778,1750474239816,-528.44752535,0.00026497,4]
[366818779,1750474239826,-490.0,0.00026497,4]
[366818780,1750474239836,-490.0,0.00026497,4]
[366818781,1750474239846,-614.63735106,0.00026497,4]
[366818782,1750474239856,-157.86261516,0.00026498,2]
[366818783,1750474239865,-490.0,0.00026498,4]
[366818784,1750474239875,-490.0,0.00026498,4]
[366818785,1750474239884,-490.0,0.00026498,4]
[366818786,1750474239894,-490.0,0.00026498,4]
[366818787,1750474239905,-490.0,0.00026498,4]
[366818788,1750474239915,-490.0,0.00026498,4]
[366818789,1750474239925,-490.0,0.00026498,4]
[366818790,1750474239935,-490.0,0.00026498,4]
[366818791,1750474239945,-490.0,0.00026498,4]
[366818792,1750474239955,-490.0,0.00026498,4]
[366818793,1750474239966,-490.0,0.00026498,4]
[366818794,1750474239977,-347.63352234,0.00026498,4]
[366818795,1750474239987,-490.0,0.00026498,4]
[366818796,1750474239997,-490.0,0.00026498,4]
[366818797,1750474240008,-490.0,0.00026498,4]
[366818798,1750474240017,-490.0,0.00026498,4]
[366818799,1750474240028,-490.0,0.00026498,4]
[366818800,1750474240039,-490.0,0.00026498,4]
[366818801,1750474240051,-533.19550756,0.00026498,4]
[366818802,1750474240061,-490.0,0.00026498,4]
[366818803,1750474240071,-490.0,0.00026498,4]
[366818804,1750474240082,-490.0,0.00026498,4]
[366818805,1750474240092,-490.0,0.00026498,4]
[366818806,1750474240103,-490.0,0.00026498,4]
[366818807,1750474240113,-588.65098939,0.00026498,4]
[366818808,1750474240122,-490.0,0.00026498,4]
[366818809,1750474240132,-490.0,0.00026498,4]
[366818811,1750474240141,-490.0,0.00026498,4]
[366818813,1750474240151,-490.0,0.00026498,4]
[366818814,1750474240161,-490.0,0.00026498,4]
[366818815,1750474240171,-490.0,0.00026498,4]
[366818816,1750474240182,-490.0,0.00026498,4]
[366818817,1750474240191,-490.0,0.00026498,4]
[366818818,1750474240201,-490.0,0.00026498,4]
[366818819,1750474240211,-490.0,0.00026498,4]
[366818820,1750474240220,-542.88805444,0.00026498,4]
[366818821,1750474240230,-490.0,0.00026498,4]
[366818822,1750474240240,-490.0,0.00026498,4]
[366818823,1750474240249,-629.43,0.00026498,4]
[366818824,1750474240259,-490.0,0.00026498,4]
[366818825,1750474240269,-490.0,0.00026498,4]
[366818826,1750474240278,-539.02035197,0.00026498,4]
[366818828,1750474240288,-494.62207108,0.00026498,4]
[366818829,1750474240298,-490.0,0.00026498,4]
[366818830,1750474240308,-490.0,0.00026498,4]
[366818831,1750474240318,-553.13454367,0.00026498,4]
[366818832,1750474240329,-490.0,0.00026498,4]
[366818833,1750474240340,-490.0,0.00026498,4]
[366818834,1750474240350,-490.0,0.00026498,4]
[366818835,1750474240362,-490.0,0.00026498,4]
[366818836,1750474240373,-490.0,0.00026498,4]
[366818837,1750474240383,-519.82248899,0.00026498,4]
[366818838,1750474240393,-490.0,0.00026498,4]
[366818839,1750474240404,-490.0,0.00026498,4]
[366818840,1750474240415,-490.0,0.00026498,4]
[366818841,1750474240426,-490.0,0.00026498,4]
[366818842,1750474240436,-490.0,0.00026498,4]
[366818843,1750474240447,-490.0,0.00026498,4]
[366818844,1750474240458,-490.0,0.00026498,4]
[366818845,1750474240468,-490.0,0.00026498,4]
[366818846,1750474240478,-490.0,0.00026498,4]
[366818847,1750474240488,-490.0,0.00026498,4]
[366818848,1750474240498,-490.0,0.00026498,4]
[366818849,1750474240508,-490.0,0.00026498,4]
[366818850,1750474240518,-491.37132562,0.00026498,2]
[366818851,1750474240527,-490.0,0.00026498,4]
[366818852,1750474240537,-630.54695,0.00026498,4]
[366818853,1750474240547,-490.0,0.00026498,4]
[366818854,1750474240557,-490.0,0.00026498,4]
[366818855,1750474240567,-540.56763622,0.00026498,4]
[366818856,1750474240577,-592.10274274,0.00026498,4]
[366818857,1750474240587,-490.0,0.00026498,4]
[366818858,1750474240597,-490.0,0.00026498,4]
[366818859,1750474240607,-490.0,0.00026498,4]
[366818860,1750474240617,-490.0,0.00026498,4]
[366818861,1750474240627,-490.0,0.00026498,4]
[366818862,1750474240638,-490.0,0.00026498,4]
[366818863,1750474240648,-490.0,0.00026498,4]
[366818864,1750474240658,-490.0,0.00026498,4]
[366818865,1750474240668,-490.0,0.00026498,4]
[366818866,1750474240678,-610.49,0.00026498,4]
[366818867,1750474240689,-490.0,0.00026498,4]
[366818868,1750474240699,-490.0,0.00026498,4]
[366818869,1750474240709,-490.0,0.00026498,4]
[366818870,1750474240720,-490.0,0.00026498,4]
[366818871,1750474240730,-490.0,0.00026498,4]
[366818872,1750474240740,-490.0,0.00026498,4]
[366818873,1750474240750,-490.0,0.00026498,4]
[366818874,1750474240760,-490.0,0.00026498,4]
[366818875,1750474240770,-490.0,0.00026498,4]
[366818876,1750474240780,-465.12497925,0.00026498,4]
[366818877,1750474240790,-490.0,0.00026498,4]
[366818878,1750474240800,-490.0,0.00026498,4]
[366818879,1750474240810,-490.0,0.00026498,4]
[366818880,1750474240820,-437.90237801,0.00026498,4]
[366818881,1750474240830,-317.22528695,0.00026498,4]
[366818883,1750474240840,-349.836924,0.00026498,4]
[366818885,1750474240850,-490.0,0.00026498,4]
[366818887,1750474240860,-490.0,0.00026498,4]
[366818889,1750474240869,-283.81760709,0.00026498,4]
[366818891,1750474240879,-490.0,0.00026498,4]
[366818893,1750474240889,-490.0,0.00026498,4]
[366818894,1750474240898,-490.0,0.00026498,4]
[366818896,1750474240908,-490.0,0.00026498,4]
[366818898,1750474240918,-490.0,0.00026498,4]
[366818900,1750474240928,-490.0,0.00026498,4]
[366818902,1750474240938,-490.0,0.00026498,4]
[366818904,1750474240948,-490.0,0.00026498,4]
[366818905,1750474240957,-490.0,0.00026498,4]
[366818907,1750474240966,-490.0,0.00026498,4]
[366818908,1750474240976,-490.0,0.00026498,4]
[366818909,1750474240986,-490.0,0.00026498,4]
[366818910,1750474240996,-285.01,0.00026498,4]
[366818911,1750474241006,-299.41922123,0.00026498,4]
[366818912,1750474241016,-490.0,0.00026498,4]
[366818913,1750474241025,-154.48944936,0.00026498,2]
[366818914,1750474241035,-150.0,0.00026498,4]
[366818915,1750474241048,-150.0,0.00026498,2]
[366818916,1750474241058,-500.0,0.00026498,4]
[366818917,1750474241068,-490.0,0.00026498,4]
[366818918,1750474241077,-150.81828126,0.00026498,4]
[366818919,1750474241088,-150.0,0.00026498,4]
[366818920,1750474241098,-383.09581881,0.00026498,4]
[366818921,1750474241107,-490.0,0.00026498,4]
[366818922,1750474241118,-490.0,0.00026498,4]
[366818923,1750474241128,-615.25116419,0.00026498,4]
[366818924,1750474241138,-490.0,0.00026498,4]
[366818925,1750474241147,-319.01631824,0.00026498,4]
[366818926,1750474241158,-206.16882452,0.00026498,4]
[366818927,1750474241167,-155.92091009,0.00026498,4]
[366818928,1750474241177,-162.55715163,0.00026498,4]
[366818929,1750474241187,-150.0,0.00026498,4]
[366818930,1750474241197,-152.91938148,0.00026498,4]
[366818931,1750474241207,-153.46227534,0.00026498,4]
[366818932,1750474241218,-150.0,0.00026498,4]
[366818933,1750474241228,-150.42008304,0.00026498,4]
[366818934,1750474241238,-1224.46,0.000265,2]
[366818935,1750474241247,-302.0,0.000265,2]
[366818936,1750474241258,-321.0,0.000265,2]
[366818937,1750474241268,-22182.67136561,0.000265,2]
[366818938,1750474241278,-400.0,0.000265,9]
[366818939,1750474241288,-150.0,0.00026502,2]
[366818940,1750474241298,-157.86261516,0.00026512,2]
[366818941,1750474241308,-150.0,0.00026525,4]
[366818942,1750474241529,-150.0,0.00026525,2]
[366818943,1750474241573,-500.0,0.00026525,4]
[366818944,1750474241584,-170.12094998,0.00026525,4]
[366818945,1750474241595,-150.0,0.00026525,4]
[366818946,1750474241605,-150.0,0.00026525,4]
[366818947,1750474241616,-157.86261516,0.00026527,2]
[366818948,1750474241627,-150.0,0.00026532,2]
[366818949,1750474241637,-341.67388126,0.00026535,4]
[366818950,1750474241647,-490.0,0.00026535,4]
[366818951,1750474241658,-490.0,0.00026535,4]
[366818952,1750474241668,-568.05555804,0.00026535,4]
[366818953,1750474241678,-490.0,0.00026535,4]
[366818954,1750474241689,-490.0,0.00026535,4]
[366818955,1750474241699,-490.0,0.00026535,4]
[366818956,1750474241709,-490.0,0.00026535,4]
[366818957,1750474241720,-490.0,0.00026535,4]
[366818958,1750474241730,-490.0,0.00026535,4]
[366818959,1750474241741,-490.0,0.00026535,4]
[366818960,1750474241751,-490.0,0.00026535,4]
[366818961,1750474241761,-490.0,0.00026535,4]
[366818962,1750474241771,-490.0,0.00026535,4]
[366818963,1750474241781,-490.0,0.00026535,4]
[366818964,1750474241791,-490.0,0.00026535,4]
[366818965,1750474241801,-490.0,0.00026535,4]
[366818966,1750474241811,-490.0,0.00026535,4]
[366818967,1750474241821,-578.97150078,0.00026535,4]
[366818968,1750474241832,-510.58598017,0.00026535,4]
[366818969,1750474241841,-514.35802717,0.00026535,4]
[366818970,1750474241851,-490.0,0.00026535,4]
[366818971,1750474241867,-490.0,0.00026535,4]
[366818972,1750474241878,-490.0,0.00026535,4]
[366818973,1750474241888,-490.0,0.00026535,4]
[366818974,1750474241899,-509.40421884,0.00026535,4]
[366818975,1750474241910,-339.62,0.00026535,4]
[366818976,1750474241920,-519.09808696,0.00026535,4]
[366818977,1750474241931,-518.3271864,0.00026535,4]
[366818978,1750474241942,-490.0,0.00026535,4]
[366818979,1750474241952,-490.0,0.00026535,4]
[366818980,1750474241963,-418.90764624,0.00026535,4]
[366818981,1750474241974,-490.0,0.00026535,4]
[366818982,1750474241986,-522.42785101,0.00026535,4]
[366818983,1750474241997,-490.0,0.00026535,4]
[366818984,1750474242007,-490.0,0.00026535,4]
[366818985,1750474242018,-490.0,0.00026535,4]
[366818986,1750474242029,-490.0,0.00026535,4]
[366818987,1750474242041,-490.0,0.00026535,4]
[366818988,1750474242053,-490.0,0.00026535,4]
[366818989,1750474242063,-490.0,0.00026535,4]
[366818990,1750474242074,-490.0,0.00026535,4]
[366818991,1750474242086,-490.0,0.00026535,4]
[366818992,1750474242096,-519.15589266,0.00026535,4]
[366818993,1750474242106,-490.0,0.00026535,4]
[366818994,1750474242117,-490.0,0.00026535,4]
[366818995,1750474242127,-544.95732104,0.00026535,4]
[366818996,1750474242137,-490.0,0.00026535,4]
[366818997,1750474242147,-553.19134417,0.00026535,4]
[366818998,1750474242158,-490.0,0.00026535,4]
[366818999,1750474242168,-490.0,0.00026535,4]
[366819000,1750474242178,-490.0,0.00026535,4]
[366819001,1750474242189,-490.0,0.00026535,4]
[366819002,1750474242199,-529.32088583,0.00026535,4]
[366819003,1750474242210,-392.28039938,0.00026535,4]
[366819004,1750474242220,-490.0,0.00026535,4]
[366819005,1750474242231,-490.0,0.00026535,4]
[366819006,1750474242242,-490.0,0.00026535,4]
[366819007,1750474242253,-825.65,0.00026535,4]
[366819008,1750474242263,-490.0,0.00026535,4]
[366819009,1750474242273,-490.0,0.00026535,4]
[366819010,1750474242284,-1964.92,0.00026535,4]
[366819011,1750474242294,-490.0,0.00026535,4]
[366819012,1750474242309,-490.0,0.00026535,4]
[366819013,1750474242320,-560.31,0.00026535,4]
[366819014,1750474242330,-490.0,0.00026535,4]
[366819015,1750474242341,-490.0,0.00026535,4]
[366819016,1750474242352,-490.0,0.00026535,4]
[366819017,1750474242362,-490.0,0.00026535,4]
[366819018,1750474242372,-490.0,0.00026535,4]
[366819019,1750474242383,-860.96,0.00026535,4]
[366819020,1750474242392,-490.0,0.00026535,4]
[366819021,1750474242403,-503.75,0.00026535,4]
[366819022,1750474242413,-490.0,0.00026535,4]
[366819023,1750474242423,-490.0,0.00026535,4]
[366819024,1750474242434,-664.46,0.00026535,4]
[366819025,1750474242444,-490.0,0.00026535,4]
[366819026,1750474242454,-490.0,0.00026535,4]
[366819027,1750474242465,-490.0,0.00026535,4]
[366819028,1750474242476,-490.0,0.00026535,4]
[366819029,1750474242486,-490.0,0.00026535,4]
[366819030,1750474242498,-490.0,0.00026535,4]
[366819031,1750474242508,-610.22,0.00026535,4]
[366819032,1750474242519,-490.0,0.00026535,4]
[366819033,1750474242531,-830.0,0.00026535,4]
[366819034,1750474242542,-490.0,0.00026535,4]
[366819035,1750474242552,-490.0,0.00026535,4]
[366819036,1750474242563,-490.0,0.00026535,4]
[366819037,1750474242574,-490.0,0.00026535,4]
[366819038,1750474242584,-490.0,0.00026535,4]
[366819039,1750474242594,-1694.66,0.00026535,4]
[366819040,1750474242605,-490.0,0.00026535,4]
[366819041,1750474242615,-490.0,0.00026535,4]
[366819042,1750474242626,-490.0,0.00026535,4]
[366819043,1750474242637,-490.0,0.00026535,4]
[366819044,1750474242647,-800.56,0.00026535,4]
[366819045,1750474242659,-490.0,0.00026535,4]
[366819046,1750474242669,-490.0,0.00026535,4]
[366819047,1750474242680,-490.0,0.00026535,4]
[366819048,1750474242691,-490.0,0.00026535,4]
[366819049,1750474242701,-315.39076252,0.00026535,4]
[366819050,1750474242711,-490.0,0.00026535,4]
[366819051,1750474242723,-490.0,0.00026535,4]
[366819052,1750474242732,-490.0,0.00026535,4]
[366819053,1750474242748,-490.0,0.00026535,4]
[366819054,1750474242759,-490.0,0.00026535,4]
[366819055,1750474242769,-490.0,0.00026535,4]
[366819056,1750474242780,-490.0,0.00026535,4]
[366819057,1750474242790,-490.0,0.00026535,4]
[366819058,1750474242801,-490.0,0.00026535,4]
[366819059,1750474242811,-490.0,0.00026535,4]
[366819060,1750474242822,-490.0,0.00026535,4]
[366819061,1750474242832,-490.0,0.00026535,4]
[366819062,1750474242842,-357.93512509,0.00026535,4]
[366819063,1750474242854,-490.0,0.00026535,4]
[366819064,1750474242864,-157.86261516,0.00026541,2]
[366819065,1750474242875,-150.0,0.00026548,2]
[366819066,1750474242886,-204.49813837,0.00026553,4]
[366819067,1750474242896,-150.0,0.00026553,2]
[366819068,1750474242906,-500.0,0.00026553,4]
[366819069,1750474242916,-200.0,0.00026553,4]
[366819070,1750474242925,-271.15738385,0.00026553,4]